fUST/lending_fUST_20250713
["ID","MTS","AMOUNT","RATE_DAILY","PERIOD"]
[371740458,1752411045950,-460.0,0.00016986,2]
[371740459,1752411045962,-460.0,0.00016986,2]
[371740460,1752411045971,-460.0,0.00016986,2]
[371740461,1752411045981,-460.0,0.00016986,2]
[371740462,1752411045991,-460.0,0.00016986,2]
[371740463,1752411046001,-972.37,0.00016986,2]
[371740464,1752411046020,-460.0,0.00016986,2]
[371740465,1752411046030,-460.0,0.00016986,2]
[371740466,1752411046040,-460.0,0.00016986,2]
[371740467,1752411046051,-465.70523006,0.00016986,2]
[371740468,1752411046065,-460.0,0.00016986,2]
[371740469,1752411046076,-460.0,0.00016986,2]
[371740470,1752411046086,-460.0,0.00016986,2]
[371740471,1752411046097,-460.0,0.00016986,2]
[371740472,1752411046107,-460.0,0.00016986,2]
[371740473,1752411046118,-460.0,0.00016986,2]
[371740474,1752411046129,-460.0,0.00016986,2]
[371740475,1752411046139,-460.0,0.00016986,2]
[371740476,1752411046152,-464.84,0.00016986,2]
[371740477,1752411046163,-517.48,0.00016986,2]
[371740479,1752411046178,-460.0,0.00016986,2]
[371740480,1752411046189,-554.12,0.00016986,2]
[371740481,1752411046200,-774.67,0.00016986,2]
[371740482,1752411046211,-460.0,0.00016986,2]
[371740484,1752411046222,-460.0,0.00016986,2]
[371740486,1752411046233,-1298.67,0.00016986,2]
[371740488,1752411046243,-460.0,0.00016986,2]
[371740490,1752411046254,-460.0,0.00016986,2]
[371740492,1752411046273,-541.89,0.00016986,2]
[371740494,1752411046284,-469.82,0.00016986,2]
[371740496,1752411046295,-460.0,0.00016986,2]
[371740498,1752411046304,-460.0,0.00016986,2]
[371740500,1752411046314,-460.0,0.00016986,2]
[371740515,1752411046448,-460.0,0.00016986,2]
[371740517,1752411046462,-460.0,0.00016986,2]
[371740519,1752411046472,-202.15,0.00016986,2]
[371740521,1752411046482,-460.0,0.00016986,2]
[371740523,1752411046492,-1157.88,0.00016986,2]
[371740525,1752411046501,-460.0,0.00016986,2]
[371740527,1752411046518,-460.0,0.00016986,2]
[371740528,1752411046527,-460.0,0.00016986,2]
[371740529,1752411046538,-460.0,0.00016986,2]
[371740530,1752411046549,-383.05399616,0.00016986,2]
[371740531,1752411046559,-460.0,0.00016986,2]
[371740532,1752411046569,-460.0,0.00016986,2]
[371740533,1752411046579,-460.0,0.00016986,2]
[371740534,1752411046588,-460.0,0.00016986,2]
[371740535,1752411046597,-460.0,0.00016986,2]
[371740536,1752411046607,-637.04,0.00016986,2]
[371740537,1752411046617,-950.54,0.00016986,2]
[371740538,1752411046627,-522.55,0.00016986,2]
[371740539,1752411046637,-375.90731154,0.00017021,2]
[371740540,1752411046646,-500.0,0.00017021,2]
[371740541,1752411046656,-500.0,0.00017021,2]
[371740542,1752411046666,-1000.0,0.00017021,2]
[371740543,1752411046676,-1010.59151944,0.00017021,2]
[371740544,1752411046686,-328.94402771,0.00017021,2]
[371740545,1752411046695,-181.40433,0.00017061,2]
[371740546,1752411046705,-621.19623523,0.000171,2]
[371740547,1752411046715,-181.40433,0.00017141,2]
[371740548,1752411046725,-621.19623518,0.0001721,2]
[371740549,1752411046734,-181.40433,0.00017222,2]
[371740550,1752411046743,-460.0,0.0001726,2]
[371740551,1752411046753,-460.0,0.0001726,2]
[371740552,1752411046769,-460.0,0.0001726,2]
[371740553,1752411046779,-460.0,0.0001726,2]
[371740554,1752411046790,-460.0,0.0001726,2]
[371740555,1752411046800,-460.0,0.0001726,2]
[371740556,1752411046810,-460.0,0.0001726,2]
[371740557,1752411046820,-460.0,0.0001726,2]
[371740558,1752411046831,-460.0,0.0001726,2]
[371740559,1752411046841,-460.0,0.0001726,2]
[371740560,1752411046852,-460.0,0.0001726,2]
[371740561,1752411046862,-460.0,0.0001726,2]
[371740562,1752411046872,-460.0,0.0001726,2]
[371740563,1752411046882,-460.0,0.0001726,2]
[371740564,1752411046892,-460.0,0.0001726,2]
[371740565,1752411046902,-972.37,0.0001726,2]
[371740566,1752411046912,-460.0,0.0001726,2]
[371740567,1752411046922,-460.0,0.0001726,2]
[371740568,1752411046931,-460.0,0.0001726,2]
[371740569,1752411046941,-460.0,0.0001726,2]
[371740570,1752411046952,-460.0,0.0001726,2]
[371740571,1752411046963,-460.0,0.0001726,2]
[371740572,1752411046973,-460.0,0.0001726,2]
[371740573,1752411046983,-460.0,0.0001726,2]
[371740574,1752411046993,-460.0,0.0001726,2]
[371740575,1752411047003,-460.0,0.0001726,2]
[371740576,1752411047022,-464.84,0.0001726,2]
[371740577,1752411047033,-460.0,0.0001726,2]
[371740578,1752411047045,-554.12,0.0001726,2]
[371740579,1752411047057,-774.67,0.0001726,2]
[371740580,1752411047070,-460.0,0.0001726,2]
[371740581,1752411047081,-460.0,0.0001726,2]
[371740582,1752411047093,-1298.67,0.0001726,2]
[371740583,1752411047103,-460.0,0.0001726,2]
[371740584,1752411047114,-541.89,0.0001726,2]
[371740585,1752411047125,-469.82,0.0001726,2]
[371740586,1752411047136,-460.0,0.0001726,2]
[371740587,1752411047146,-460.0,0.0001726,2]
[371740588,1752411047162,-460.0,0.0001726,2]
[371740589,1752411047173,-460.0,0.0001726,2]
[371740590,1752411047184,-460.0,0.0001726,2]
[371740591,1752411047200,-1157.88,0.0001726,2]
[371740592,1752411047211,-460.0,0.0001726,2]
[371740593,1752411047223,-460.0,0.0001726,2]
[371740594,1752411047235,-460.0,0.0001726,2]
[371740595,1752411047246,-460.0,0.0001726,2]
[371740596,1752411047267,-460.0,0.0001726,2]
[371740597,1752411047278,-460.0,0.0001726,2]
[371740598,1752411047290,-460.0,0.0001726,2]
[371740599,1752411047302,-460.0,0.0001726,2]
[371740600,1752411047314,-637.04,0.0001726,2]
[371740601,1752411047325,-950.54,0.0001726,2]
[371740602,1752411047336,-181.40433,0.00017303,2]
[371740603,1752411047348,-181.40433,0.00017384,2]
[371740604,1752411047360,-181.40433,0.00017465,2]
[371740605,1752411047372,-621.19623518,0.00017521,2]
[371740606,1752411047385,-460.0,0.00017534,2]
[371740607,1752411047398,-460.0,0.00017534,2]
[371740608,1752411047409,-193.63840856,0.00017534,2]
[371740609,1752411048992,-500.0,0.00016415,2]
[371740610,1752411049002,-500.0,0.00016415,2]
[371740611,1752411049017,-500.0,0.00016415,2]
[371740612,1752411049027,-500.0,0.00016415,2]
[371740613,1752411049037,-500.0,0.00016415,2]
[371740614,1752411049048,-500.0,0.00016415,2]
[371740615,1752411049057,-500.0,0.00016415,2]
[371740616,1752411049067,-104.15936885,0.00016415,2]
[371740617,1752411049079,-395.84063115,0.00016415,2]
[371740618,1752411049089,-500.0,0.00016415,2]
[371740619,1752411049100,-500.0,0.00016415,2]
[371740620,1752411049109,-500.0,0.00016415,2]
[371740621,1752411049119,-500.0,0.00016415,2]
[371740622,1752411049128,-500.0,0.00016415,2]
[371740623,1752411049138,-500.0,0.00016415,2]
[371740624,1752411049149,-500.0,0.00016415,2]
[371740625,1752411049159,-500.0,0.00016415,2]
[371740626,1752411049168,-501.67235945,0.00016415,2]
[371740627,1752411049178,-500.0,0.00016415,2]
[371740628,1752411049190,-394.97756992,0.00016415,2]
[371740629,1752411049200,-500.0,0.00016415,2]
[371740630,1752411049210,-500.0,0.00016415,2]
[371740631,1752411049220,-500.0,0.00016415,2]
[371740632,1752411049231,-500.0,0.00016415,2]
[371740633,1752411049241,-500.0,0.00016415,2]
[371740634,1752411049251,-500.0,0.00016415,2]
[371740635,1752411049264,-265.60878779,0.00016415,2]
[371740636,1752411049274,-500.0,0.00016415,2]
[371740637,1752411049284,-500.0,0.00016415,2]
[371740638,1752411049295,-500.0,0.00016415,2]
[371740639,1752411049305,-500.0,0.00016415,2]
[371740640,1752411049315,-500.0,0.00016415,2]
[371740641,1752411049535,-500.0,0.00016415,2]
[371740642,1752411049546,-500.0,0.00016415,2]
[371740643,1752411049556,-500.0,0.00016415,2]
[371740644,1752411049566,-500.0,0.00016415,2]
[371740645,1752411049575,-500.0,0.00016415,2]
[371740646,1752411049585,-221.91059324,0.00016415,2]
[371740647,1752411049595,-500.0,0.00016415,2]
[371740648,1752411049604,-500.0,0.00016415,2]
[371740649,1752411049614,-500.0,0.00016415,2]
[371740650,1752411049623,-500.0,0.00016415,2]
[371740651,1752411049633,-500.0,0.00016415,2]
[371740652,1752411049642,-500.0,0.00016415,2]
[371740653,1752411049651,-500.0,0.00016415,2]
[371740654,1752411049661,-500.0,0.00016415,2]
[371740655,1752411049670,-155.98481603,0.00016415,2]
[371740656,1752411049679,-500.0,0.00016415,2]
[371740657,1752411049688,-500.0,0.00016415,2]
[371740658,1752411049698,-500.0,0.00016415,2]
[371740659,1752411049708,-500.0,0.00016415,2]
[371740660,1752411049718,-500.0,0.00016415,2]
[371740661,1752411049727,-500.0,0.00016415,2]
[371740662,1752411049737,-500.0,0.00016415,2]
[371740663,1752411049747,-500.0,0.00016415,2]
[371740664,1752411049756,-500.0,0.00016415,2]
[371740665,1752411049770,-500.0,0.00016415,2]
[371740666,1752411049779,-500.0,0.00016415,2]
[371740667,1752411049789,-500.0,0.00016415,2]
[371740668,1752411049799,-500.0,0.00016415,2]
[371740669,1752411049809,-500.0,0.00016415,2]
[371740670,1752411049819,-500.0,0.00016415,2]
[371740671,1752411049830,-500.0,0.00016415,2]
[371740672,1752411049839,-500.0,0.00016415,2]
[371740673,1752411049849,-500.0,0.00016415,2]
[371740674,1752411049859,-500.0,0.00016415,2]
[371740675,1752411049869,-500.0,0.00016415,2]
[371740676,1752411049879,-415.08230367,0.00016415,2]
[371740677,1752411049889,-500.0,0.00016415,2]
[371740678,1752411049899,-500.0,0.00016415,2]
[371740679,1752411049909,-500.0,0.00016415,2]
[371740680,1752411049919,-500.0,0.00016415,2]
[371740681,1752411049929,-500.0,0.00016415,2]
[371740682,1752411049939,-500.0,0.00016415,2]
[371740683,1752411049949,-500.0,0.00016415,2]
[371740684,1752411049959,-500.0,0.00016415,2]
[371740685,1752411049970,-500.0,0.00016415,2]
[371740686,1752411049980,-500.0,0.00016415,2]
[371740687,1752411049990,-500.0,0.00016415,2]
[371740688,1752411050000,-500.0,0.00016415,2]
[371740689,1752411050013,-500.0,0.00016415,2]
[371740690,1752411050023,-500.0,0.00016415,2]
[371740691,1752411050033,-500.0,0.00016415,2]
[371740692,1752411050043,-500.0,0.00016415,2]
[371740693,1752411050053,-500.0,0.00016415,2]
[371740694,1752411050063,-500.0,0.00016415,2]
[371740695,1752411050073,-500.0,0.00016415,2]
[371740696,1752411050084,-500.0,0.00016415,2]
[371740697,1752411050094,-500.0,0.00016415,2]
[371740698,1752411050104,-500.0,0.00016415,2]
[371740699,1752411050114,-500.0,0.00016415,2]
[371740700,1752411050124,-500.0,0.00016415,2]
[371740701,1752411050134,-500.0,0.00016415,2]
[371740702,1752411050144,-500.0,0.00016415,2]
[371740703,1752411050154,-500.0,0.00016415,2]
[371740704,1752411050163,-500.0,0.00016415,2]
[371740705,1752411050173,-500.0,0.00016415,2]
[371740706,1752411050184,-500.0,0.00016415,2]
[371740707,1752411050194,-500.0,0.00016415,2]
[371740708,1752411050204,-184.59621987,0.00016415,2]
[371740709,1752411050214,-500.0,0.00016415,2]
[371740710,1752411050224,-500.0,0.00016415,2]
[371740711,1752411050234,-500.0,0.00016415,2]
[371740712,1752411050244,-500.0,0.00016415,2]
[371740713,1752411050255,-500.0,0.00016415,2]
[371740714,1752411050269,-500.0,0.00016415,2]
[371740715,1752411050279,-500.0,0.00016415,2]
[371740716,1752411050289,-500.0,0.00016415,2]
[371740717,1752411050299,-500.0,0.00016415,2]
[371740718,1752411050310,-500.0,0.00016415,2]
[371740719,1752411050320,-500.0,0.00016415,2]
[371740720,1752411050330,-500.0,0.00016415,2]
[371740721,1752411050340,-500.0,0.00016415,2]
[371740722,1752411050350,-500.0,0.00016415,2]
[371740723,1752411050359,-500.0,0.00016415,2]
[371740724,1752411050369,-500.0,0.00016415,2]
[371740725,1752411050380,-500.0,0.00016415,2]
[371740726,1752411050390,-500.0,0.00016415,2]
[371740727,1752411050400,-500.0,0.00016415,2]
[371740728,1752411050410,-500.0,0.00016415,2]
[371740729,1752411050421,-500.0,0.00016415,2]
[371740730,1752411050431,-500.0,0.00016415,2]
[371740731,1752411050441,-500.0,0.00016415,2]
[371740732,1752411050451,-500.0,0.00016415,2]
[371740733,1752411050462,-500.0,0.00016415,2]
[371740734,1752411050472,-500.0,0.00016415,2]
[371740735,1752411050482,-500.0,0.00016415,2]
[371740736,1752411050491,-500.0,0.00016415,2]
[371740737,1752411050501,-500.0,0.00016415,2]
[371740738,1752411050516,-500.0,0.00016415,2]
[371740739,1752411050525,-500.0,0.00016415,2]
[371740740,1752411050535,-500.0,0.00016415,2]
[371740741,1752411050546,-500.0,0.00016415,2]
[371740742,1752411050556,-500.0,0.00016415,2]
[371740743,1752411050566,-500.0,0.00016415,2]
[371740744,1752411050576,-66.71711746,0.00016415,2]
[371740745,1752411050591,-433.28288254,0.00016415,2]
[371740746,1752411050601,-500.0,0.00016415,2]
[371740747,1752411050610,-500.0,0.00016415,2]
[371740748,1752411050620,-500.0,0.00016415,2]
[371740749,1752411050629,-500.0,0.00016415,2]
[371740750,1752411050639,-500.0,0.00016415,2]
[371740751,1752411050648,-500.0,0.00016415,2]
[371740752,1752411050657,-500.0,0.00016415,2]
[371740753,1752411050667,-500.0,0.00016415,2]
[371740754,1752411050676,-500.0,0.00016415,2]
[371740755,1752411050685,-500.0,0.00016415,2]
[371740756,1752411050695,-500.0,0.00016415,2]
[371740757,1752411050704,-352.71711746,0.00016415,2]
[371740758,1752411119364,875.07582527,0.00024038,10]
[371740759,1752411119435,875.07582527,0.00024348,11]
[371740760,1752411119524,875.07582527,0.00024659,11]
[371740761,1752411119599,875.07582527,0.00024969,12]
[371740762,1752411119690,875.07582527,0.00025279,12]
[371740763,1752411119783,875.07582527,0.0002559,13]
[371740764,1752411119892,875.07582527,0.000259,14]
[371740765,1752411143219,6083.64,0.00033,14]
[371740766,1752411143793,6083.64,0.000375,14]
[371740767,1752411182748,500.0,0.00039,30]
[371740768,1752411245455,160.0,0.00026,30]
[371740769,1752411277631,9851.8153455,0.00015515,2]
[371740770,1752411277656,13816.545932,0.00015515,2]
[371740771,1752411285571,1048.78247764,0.00024038,10]
[371740772,1752411286146,1048.78247764,0.00024348,11]
[371740773,1752411287261,1048.78247764,0.00024659,11]
[371740774,1752411287341,1048.78247764,0.00024969,12]
[371740775,1752411287432,1048.78247764,0.00025279,12]
[371740776,1752411287564,1048.78247764,0.0002559,13]
[371740777,1752411287650,1048.78247764,0.000259,14]
[371740778,1752411305192,525.37265586,0.00028,10]
[371740779,1752411306154,500.0,0.00039,30]
[371740780,1752411306182,525.37265586,0.00028,10]
[371740781,1752411314567,500.0,0.00039,30]
[371740782,1752411343169,5407.68,0.000354,14]
[371740783,1752411355285,838.53376533,0.00026,30]
[371740784,1752411429025,500.0,0.00039,30]
[371740785,1752411454574,804.06656619,0.00024038,10]
[371740786,1752411454686,804.06656619,0.00024348,11]
[371740787,1752411454788,804.06656619,0.00024659,11]
[371740788,1752411455591,804.06656619,0.00024969,12]
[371740789,1752411455694,804.06656619,0.00025279,12]
[371740790,1752411455782,804.06656619,0.0002559,13]
[371740791,1752411455873,804.06656619,0.000259,14]
[371740792,1752411472598,10022.0,0.0004,10]
[371740793,1752411572248,4326.14,0.00035,14]
[371740794,1752411581122,634.14164939,0.00039696,14]
[371740795,1752411610923,616.45103408,0.00024038,10]
[371740796,1752411611007,616.45103408,0.00024348,11]
[371740797,1752411611106,616.45103408,0.00024659,11]
[371740798,1752411611238,616.45103408,0.00024969,12]
[371740799,1752411611339,616.45103408,0.00025279,12]
[371740800,1752411611587,616.45103408,0.0002559,13]
[371740801,1752411611675,616.45103408,0.000259,14]
[371740802,1752411615252,525.37265586,0.00028,10]
[371740803,1752411615683,525.37265586,0.00028,10]
[371740804,1752411637293,318.0,0.0004,14]
[371740805,1752411728112,171.0,0.00033,14]
[371740806,1752411728468,171.0,0.00034521,30]
[371740807,1752411749551,1976.025814,0.0004,13]
[371740808,1752411773742,665.91821922,0.00024038,10]
[371740809,1752411773979,665.91821922,0.00024348,11]
[371740810,1752411774031,665.91821922,0.00024659,11]
[371740811,1752411774239,665.91821922,0.00024969,12]
[371740812,1752411774337,665.91821922,0.00025279,12]
[371740813,1752411774632,665.91821922,0.0002559,13]
[371740814,1752411774741,665.91821922,0.000259,14]
[371740815,1752411779098,3893.53,0.000354,14]
[371740816,1752411853841,1500.0,0.0004,32]
[371740817,1752411854155,1500.0,0.000395,32]
[371740818,1752411854585,1500.0,0.00039,32]
[371740819,1752411854955,1500.0,0.000385,32]
[371740820,1752411855311,2413.064969,0.00038,32]
[371740821,1752411903798,23313.87,0.0004,10]
[371740822,1752411910085,460.0,0.0004,10]
[371740823,1752411917982,525.37265586,0.00028,10]
[371740824,1752411918400,525.37265586,0.00028,10]
[371740825,1752411936187,510.53730141,0.00024038,10]
[371740826,1752411936272,510.53730141,0.00024348,11]
[371740827,1752411936344,510.53730141,0.00024659,11]
[371740828,1752411936445,510.53730141,0.00024969,12]
[371740829,1752411936530,510.53730141,0.00025279,12]
[371740830,1752411936612,510.53730141,0.0002559,13]
[371740831,1752411936704,510.53730141,0.000259,14]
[371740833,1752411951288,550.616203,0.00013699,2]
[371740834,1752411962556,499.3879768,0.00013699,2]
[371740837,1752411988913,3504.17,0.00033,14]
[371740838,1752411989494,3504.17,0.00037,14]
[371740845,1752412092826,391.41193108,0.00024038,10]
[371740846,1752412092913,391.41193108,0.00024348,11]
[371740847,1752412093011,391.41193108,0.00024659,11]
[371740848,1752412093122,391.41193108,0.00024969,12]
[371740849,1752412093264,391.41193108,0.00025279,12]
[371740850,1752412093352,391.41193108,0.0002559,13]
[371740851,1752412093627,391.41193108,0.000259,14]
[371740852,1752412141431,500.0,0.00039,30]
[371740853,1752412173930,49734.0,0.000395,120]
[371740854,1752412201886,2803.34,0.000329,14]
[371740857,1752412204270,2803.34,0.00037,14]
[371740860,1752412209729,200.0,0.0003333,35]
[371740861,1752412221260,525.37265586,0.00028,10]
[371740862,1752412221851,525.37265586,0.00028,10]
[371740874,1752412232186,-2594.95335665,0.00016336,2]
[371740875,1752412232196,-300.0,0.00016427,2]
[371740876,1752412232205,-1103.39,0.00016428,3]
[371740877,1752412232214,-551.69,0.00016428,3]
[371740878,1752412232223,-275.85,0.00016428,3]
[371740880,1752412232233,-827.55,0.00016428,3]
[371740881,1752412232243,-4434.76022013,0.00016434,2]
[371740886,1752412232361,-8955.0,0.00016434,2]
[371741213,1752412238507,-500.0,0.00016433,2]
[371741214,1752412238517,-609.25883903,0.00016433,2]
[371741215,1752412238527,-503.37835666,0.00016433,2]
[371741216,1752412238539,-517.33164623,0.00016433,2]
[371741217,1752412238548,-500.0,0.00016433,2]
[371741218,1752412238558,-500.0,0.00016433,2]
[371741219,1752412238569,-500.0,0.00016433,2]
[371741220,1752412238580,-500.0,0.00016433,2]
[371741221,1752412238590,-500.0,0.00016433,2]
[371741222,1752412238600,-500.0,0.00016433,2]
[371741223,1752412238612,-286.25547322,0.00016433,2]
[371741225,1752412238622,-500.0,0.00016433,2]
[371741226,1752412238631,-500.0,0.00016433,2]
[371741229,1752412238651,-500.0,0.00016433,2]
[371741230,1752412238666,-500.0,0.00016433,2]
[371741231,1752412238675,-500.0,0.00016433,2]
[371741232,1752412238685,-500.0,0.00016433,2]
[371741233,1752412238694,-500.0,0.00016433,2]
[371741234,1752412238704,-500.0,0.00016433,2]
[371741235,1752412238713,-500.0,0.00016433,2]
[371741236,1752412238722,-500.0,0.00016433,2]
[371741237,1752412238731,-509.41338392,0.00016433,2]
[371741238,1752412238741,-500.0,0.00016433,2]
[371741239,1752412238750,-500.0,0.00016433,2]
[371741240,1752412238760,-500.0,0.00016433,2]
[371741241,1752412238770,-500.0,0.00016433,2]
[371741242,1752412238779,-500.0,0.00016433,2]
[371741243,1752412238788,-500.0,0.00016433,2]
[371741244,1752412238798,-500.0,0.00016433,2]
[371741245,1752412238807,-500.0,0.00016433,2]
[371741246,1752412238817,-500.0,0.00016433,2]
[371741247,1752412238826,-469.10117703,0.00016433,2]
[371741248,1752412238837,-500.0,0.00016433,2]
[371741249,1752412238847,-500.0,0.00016433,2]
[371741250,1752412238856,-500.0,0.00016433,2]
[371741251,1752412238866,-500.0,0.00016433,2]
[371741252,1752412238876,-500.0,0.00016433,2]
[371741253,1752412238886,-500.0,0.00016433,2]
[371741254,1752412238895,-500.0,0.00016433,2]
[371741255,1752412238905,-500.0,0.00016433,2]
[371741256,1752412238914,-500.0,0.00016433,2]
[371741257,1752412238924,-500.0,0.00016433,2]
[371741258,1752412238934,-500.0,0.00016433,2]
[371741259,1752412238943,-500.0,0.00016433,2]
[371741260,1752412238952,-500.0,0.00016433,2]
[371741261,1752412238962,-500.0,0.00016433,2]
[371741262,1752412238971,-500.0,0.00016433,2]
[371741263,1752412238981,-500.0,0.00016433,2]
[371741264,1752412238991,-500.0,0.00016433,2]
[371741265,1752412239000,-500.0,0.00016433,2]
[371741266,1752412239010,-500.0,0.00016433,2]
[371741267,1752412239019,-500.0,0.00016433,2]
[371741268,1752412239028,-500.0,0.00016433,2]
[371741269,1752412239039,-500.0,0.00016433,2]
[371741270,1752412239049,-500.0,0.00016433,2]
[371741271,1752412239058,-500.0,0.00016433,2]
[371741272,1752412239068,-500.0,0.00016433,2]
[371741273,1752412239078,-500.0,0.00016433,2]
[371741274,1752412239089,-500.0,0.00016433,2]
[371741275,1752412239099,-500.0,0.00016433,2]
[371741276,1752412239109,-500.0,0.00016433,2]
[371741277,1752412239118,-500.0,0.00016433,2]
[371741278,1752412239127,-500.0,0.00016433,2]
[371741279,1752412239137,-500.0,0.00016433,2]
[371741280,1752412239146,-500.0,0.00016433,2]
[371741281,1752412239156,-500.0,0.00016433,2]
[371741282,1752412239165,-500.0,0.00016433,2]
[371741283,1752412239174,-500.0,0.00016433,2]
[371741284,1752412239183,-500.0,0.00016433,2]
[371741285,1752412239193,-500.0,0.00016433,2]
[371741286,1752412239202,-500.0,0.00016433,2]
[371741287,1752412239212,-500.0,0.00016433,2]
[371741288,1752412239221,-500.0,0.00016433,2]
[371741289,1752412239231,-500.0,0.00016433,2]
[371741290,1752412239240,-500.0,0.00016433,2]
[371741291,1752412239250,-500.0,0.00016433,2]
[371741292,1752412239259,-500.0,0.00016433,2]
[371741293,1752412239268,-500.0,0.00016433,2]
[371741294,1752412239277,-500.0,0.00016433,2]
[371741295,1752412239287,-500.0,0.00016433,2]
[371741296,1752412239296,-500.0,0.00016433,2]
[371741297,1752412239307,-571.50823036,0.00016433,2]
[371741298,1752412239316,-500.0,0.00016433,2]
[371741299,1752412239326,-500.0,0.00016433,2]
[371741300,1752412239335,-500.0,0.00016433,2]
[371741301,1752412239345,-500.0,0.00016433,2]
[371741302,1752412239355,-500.0,0.00016433,2]
[371741303,1752412239364,-500.0,0.00016433,2]
[371741304,1752412239373,-500.0,0.00016433,2]
[371741305,1752412239382,-500.0,0.00016433,2]
[371741306,1752412239520,-303.29378026,0.00016433,2]
[371741307,1752412239533,-500.0,0.00016433,2]
[371741308,1752412239543,-500.0,0.00016433,2]
[371741309,1752412239553,-500.0,0.00016433,2]
[371741310,1752412239563,-500.0,0.00016433,2]
[371741311,1752412239572,-500.0,0.00016433,2]
[371741312,1752412239582,-500.0,0.00016433,2]
[371741313,1752412239592,-500.0,0.00016433,2]
[371741314,1752412239602,-500.0,0.00016433,2]
[371741315,1752412239612,-500.0,0.00016433,2]
[371741316,1752412239622,-500.0,0.00016433,2]
[371741317,1752412239631,-500.0,0.00016433,2]
[371741318,1752412239640,-500.0,0.00016433,2]
[371741319,1752412239650,-500.0,0.00016433,2]
[371741320,1752412239659,-500.0,0.00016433,2]
[371741321,1752412239668,-500.0,0.00016433,2]
[371741323,1752412239678,-500.0,0.00016433,2]
[371741324,1752412239687,-500.0,0.00016433,2]
[371741325,1752412239697,-500.0,0.00016433,2]
[371741327,1752412239706,-500.0,0.00016433,2]
[371741328,1752412239716,-500.0,0.00016433,2]
[371741330,1752412239725,-500.0,0.00016433,2]
[371741332,1752412239735,-500.0,0.00016433,2]
[371741333,1752412239745,-500.0,0.00016433,2]
[371741335,1752412239755,-500.0,0.00016433,2]
[371741337,1752412239765,-500.0,0.00016433,2]
[371741338,1752412239775,-500.0,0.00016433,2]
[371741340,1752412239784,-500.0,0.00016433,2]
[371741341,1752412239794,-500.0,0.00016433,2]
[371741343,1752412239804,-500.0,0.00016433,2]
[371741345,1752412239814,-500.0,0.00016433,2]
[371741346,1752412239824,-500.0,0.00016433,2]
[371741348,1752412239834,-168.92181271,0.00016433,2]
[371741350,1752412239844,-500.0,0.00016433,2]
[371741351,1752412239854,-500.0,0.00016433,2]
[371741353,1752412239864,-500.0,0.00016433,2]
[371741355,1752412239875,-500.0,0.00016433,2]
[371741356,1752412239885,-500.0,0.00016433,2]
[371741358,1752412239895,-500.0,0.00016433,2]
[371741360,1752412239904,-500.0,0.00016433,2]